[Event "Titled Tuesday Blitz February 01 A 2022"]
[White "Sadhwani, Raunak"]
[Black "Corrales Jimenez, Fidel"]
[WhiteFideId "35093487"]
[BlackFideId "3506690"]
[WhiteElo "2991"]
[BlackElo "2836"]
[Result "1-0"]
[Round "06"]
[TimeControl "180+1"]
[Date "2022.02.01"]
[WhiteClock "0:00:07"]
[BlackClock "0:00:06"]

1. d4 {[%clk 0:03:00]}  Nf6 {[%clk 0:02:59]} 2. Nf3 {[%clk 0:03:00]}  g6 {[%clk 0:03:00]} 3. Nc3 {[%clk 0:02:59]}  Bg7 {[%clk 0:03:00]} 4. e4 {[%clk 0:02:59]}  d6 {[%clk 0:03:00]} 5. Be3 {[%clk 0:02:59]}  Bg4 {[%clk 0:02:59]} 6. Be2 {[%clk 0:02:59]}  Nc6 {[%clk 0:02:59]} 7. d5 {[%clk 0:02:57]}  Bxf3 {[%clk 0:02:57]} 8. Bxf3 {[%clk 0:02:58]}  Ne5 {[%clk 0:02:57]} 9. Be2 {[%clk 0:02:59]}  c6 {[%clk 0:02:57]} 10. O-O {[%clk 0:02:45]}  O-O {[%clk 0:02:55]} 11. a4 {[%clk 0:02:45]}  a5 {[%clk 0:02:49]} 12. Bd4 {[%clk 0:02:44]}  Rc8 {[%clk 0:02:41]} 13. Re1 {[%clk 0:02:44]}  e6 {[%clk 0:02:04]} 14. dxe6 {[%clk 0:02:16]}  fxe6 {[%clk 0:02:04]} 15. Qd2 {[%clk 0:02:14]}  Qe7 {[%clk 0:01:56]} 16. Rad1 {[%clk 0:02:13]}  Ne8 {[%clk 0:01:28]} 17. f4 {[%clk 0:02:09]}  Nd7 {[%clk 0:01:27]} 18. Bxg7 {[%clk 0:02:08]}  Kxg7 {[%clk 0:01:27]} 19. Bf3 {[%clk 0:01:53]}  e5 {[%clk 0:01:24]} 20. f5 {[%clk 0:01:44]}  gxf5 {[%clk 0:01:22]} 21. exf5 {[%clk 0:01:45]}  Ndf6 {[%clk 0:01:22]} 22. g4 {[%clk 0:01:38]}  h6 {[%clk 0:01:22]} 23. h4 {[%clk 0:01:38]}  Nh7 {[%clk 0:01:22]} 24. Qh2 {[%clk 0:01:31]}  Nef6 {[%clk 0:01:16]} 25. Kh1 {[%clk 0:01:22]}  Rce8 {[%clk 0:01:12]} 26. Rg1 {[%clk 0:01:22]}  e4 {[%clk 0:01:07]} 27. g5 {[%clk 0:01:02]}  exf3 {[%clk 0:01:04]} 28. gxf6+ {[%clk 0:01:03]}  Kxf6 {[%clk 0:01:05]} 29. Rxd6+ {[%clk 0:01:03]}  Kf7 {[%clk 0:01:05]} 30. Re6 {[%clk 0:00:56]}  Qd8 {[%clk 0:01:02]} 31. Qe5 {[%clk 0:00:50]}  Qxh4+ {[%clk 0:01:01]} 32. Qh2 {[%clk 0:00:48]}  Qxh2+ {[%clk 0:00:59]} 33. Kxh2 {[%clk 0:00:48]}  Rxe6 {[%clk 0:00:59]} 34. fxe6+ {[%clk 0:00:49]}  Kxe6 {[%clk 0:01:00]} 35. Re1+ {[%clk 0:00:47]}  Kd7 {[%clk 0:00:55]} 36. Kg3 {[%clk 0:00:42]}  Ng5 {[%clk 0:00:55]} 37. Rh1 {[%clk 0:00:24]}  h5 {[%clk 0:00:52]} 38. Kf2 {[%clk 0:00:22]}  Rf5 {[%clk 0:00:50]} 39. Ke3 {[%clk 0:00:20]}  b5 {[%clk 0:00:50]} 40. axb5 {[%clk 0:00:20]}  cxb5 {[%clk 0:00:51]} 41. Nd1 {[%clk 0:00:18]}  Nf7 {[%clk 0:00:43]} 42. Ke4 {[%clk 0:00:17]}  Ke6 {[%clk 0:00:43]} 43. Nf2 {[%clk 0:00:14]}  Ne5 {[%clk 0:00:43]} 44. Nh3 {[%clk 0:00:10]}  Ng4 {[%clk 0:00:30]} 45. Nf4+ {[%clk 0:00:08]}  Kf6 {[%clk 0:00:31]} 46. Kxf3 {[%clk 0:00:04]}  Ne5+ {[%clk 0:00:22]} 47. Ke4 {[%clk 0:00:04]}  Rg5 {[%clk 0:00:15]} 48. Nxh5+ {[%clk 0:00:04]}  Ke7 {[%clk 0:00:15]} 49. Nf4 {[%clk 0:00:04]}  Nc4 {[%clk 0:00:14]} 50. b3 {[%clk 0:00:04]}  Nd6+ {[%clk 0:00:14]} 51. Kf3 {[%clk 0:00:04]}  Kd7 {[%clk 0:00:12]} 52. Ra1 {[%clk 0:00:04]}  b4 {[%clk 0:00:11]} 53. Nd3 {[%clk 0:00:03]}  Nb5 {[%clk 0:00:10]} 54. Kf4 {[%clk 0:00:03]}  Rg2 {[%clk 0:00:08]} 55. Rxa5 {[%clk 0:00:03]}  Nc7 {[%clk 0:00:08]} 56. Nxb4 {[%clk 0:00:02]}  Rh2 {[%clk 0:00:07]} 57. Ke3 {[%clk 0:00:03]}  Rh3+ {[%clk 0:00:07]} 58. Kd2 {[%clk 0:00:03]}  Ne6 {[%clk 0:00:07]} 59. Nd3 {[%clk 0:00:03]}  Nd4 {[%clk 0:00:08]} 60. Rc5 {[%clk 0:00:03]}  Rh2+ {[%clk 0:00:07]} 61. Kc1 {[%clk 0:00:04]}  Kd6 {[%clk 0:00:06]} 62. Kb2 {[%clk 0:00:04]}  Ne2 {[%clk 0:00:04]} 63. Rc4 {[%clk 0:00:04]}  Ng3 {[%clk 0:00:04]} 64. Nc5 {[%clk 0:00:03]}  Nf5 {[%clk 0:00:03]} 65. Ne4+ {[%clk 0:00:03]}  Ke5 {[%clk 0:00:03]} 66. Nc3 {[%clk 0:00:03]}  Ke6 {[%clk 0:00:02]} 67. Re4+ {[%clk 0:00:03]}  Kd6 {[%clk 0:00:03]} 68. Re2 {[%clk 0:00:04]}  Rh3 {[%clk 0:00:03]} 69. Rd2+ {[%clk 0:00:04]}  Kc5 {[%clk 0:00:03]} 70. Na2 {[%clk 0:00:04]}  Nd4 {[%clk 0:00:03]} 71. Nc1 {[%clk 0:00:05]}  Nb5 {[%clk 0:00:03]} 72. Nd3+ {[%clk 0:00:05]}  Kb6 {[%clk 0:00:04]} 73. Rf2 {[%clk 0:00:05]}  Rh7 {[%clk 0:00:05]} 74. c4 {[%clk 0:00:05]}  Nd4 {[%clk 0:00:05]} 75. Kc3 {[%clk 0:00:05]}  Nc6 {[%clk 0:00:06]} 76. b4 {[%clk 0:00:06]}  Rh3 {[%clk 0:00:07]} 77. Rf6 {[%clk 0:00:06]}  Kc7 {[%clk 0:00:07]} 78. Rf7+ {[%clk 0:00:05]}  Kd6 {[%clk 0:00:08]} 79. c5+ {[%clk 0:00:04]}  Kd5 {[%clk 0:00:08]} 80. Rd7+ {[%clk 0:00:04]}  Ke4 {[%clk 0:00:08]} 81. Rd6 {[%clk 0:00:04]}  Ne5 {[%clk 0:00:08]} 82. Rd4+ {[%clk 0:00:05]}  Kf5 {[%clk 0:00:08]} 83. Rd5 {[%clk 0:00:05]}  Kf6 {[%clk 0:00:07]} 84. Rxe5 {[%clk 0:00:05]}  Rh1 {[%clk 0:00:08]} 85. Rd5 {[%clk 0:00:05]}  Ke6 {[%clk 0:00:08]} 86. Rd6+ {[%clk 0:00:05]}  Ke7 {[%clk 0:00:09]} 87. Kc4 {[%clk 0:00:05]}  Rh3 {[%clk 0:00:08]} 88. Kb5 {[%clk 0:00:06]}  Rh8 {[%clk 0:00:07]} 89. Ne5 {[%clk 0:00:06]}  Rb8+ {[%clk 0:00:06]} 90. Kc4 {[%clk 0:00:07]} 1-0


[Site "https://www.chess.com"]

[Event "Titled Tuesday Blitz February 01 A 2022"]
[White "Vlassov, Nikolai"]
[Black "Wagner, Dennis"]
[WhiteFideId "4103360"]
[BlackFideId "24650684"]
[WhiteElo "2407"]
[BlackElo "2355"]
[Result "0-1"]
[Round "06"]
[TimeControl "180+1"]
[Date "2022.02.01"]
[WhiteClock "0:00:01"]
[BlackClock "0:00:04"]

1. e4 {[%clk 0:03:00]}  e5 {[%clk 0:02:59]} 2. Bc4 {[%clk 0:02:59]}  Nf6 {[%clk 0:02:58]} 3. d3 {[%clk 0:02:59]}  c6 {[%clk 0:02:58]} 4. Nf3 {[%clk 0:02:59]}  d5 {[%clk 0:02:59]} 5. Bb3 {[%clk 0:02:59]}  Bb4+ {[%clk 0:02:59]} 6. c3 {[%clk 0:02:57]}  Bd6 {[%clk 0:02:59]} 7. Bg5 {[%clk 0:02:57]}  Be6 {[%clk 0:02:42]} 8. d4 {[%clk 0:02:57]}  dxe4 {[%clk 0:02:33]} 9. Nxe5 {[%clk 0:02:56]}  Bxe5 {[%clk 0:02:19]} 10. dxe5 {[%clk 0:02:55]}  Qxd1+ {[%clk 0:02:18]} 11. Bxd1 {[%clk 0:02:54]}  Nfd7 {[%clk 0:02:18]} 12. Bf4 {[%clk 0:02:51]}  Na6 {[%clk 0:02:07]} 13. O-O {[%clk 0:02:49]}  Nac5 {[%clk 0:02:06]} 14. Nd2 {[%clk 0:02:19]}  O-O-O {[%clk 0:01:54]} 15. Bc2 {[%clk 0:02:14]}  Nd3 {[%clk 0:01:50]} 16. Bg3 {[%clk 0:01:59]}  Nxb2 {[%clk 0:01:40]} 17. Nxe4 {[%clk 0:01:57]}  Nb6 {[%clk 0:01:32]} 18. f4 {[%clk 0:01:50]}  N2c4 {[%clk 0:01:08]} 19. f5 {[%clk 0:01:45]}  Bd5 {[%clk 0:01:09]} 20. Nd6+ {[%clk 0:01:36]}  Nxd6 {[%clk 0:01:08]} 21. exd6 {[%clk 0:01:37]}  Nc4 {[%clk 0:01:06]} 22. Bb3 {[%clk 0:01:29]}  Nxd6 {[%clk 0:01:05]} 23. Bxd5 {[%clk 0:01:28]}  cxd5 {[%clk 0:01:06]} 24. Rad1 {[%clk 0:01:22]}  Ne4 {[%clk 0:01:06]} 25. Be5 {[%clk 0:01:16]}  f6 {[%clk 0:01:06]} 26. Bd4 {[%clk 0:01:16]}  b6 {[%clk 0:01:05]} 27. a4 {[%clk 0:01:16]}  Kc7 {[%clk 0:00:50]} 28. Ra1 {[%clk 0:01:13]}  Rd6 {[%clk 0:00:27]} 29. a5 {[%clk 0:01:08]}  Kb7 {[%clk 0:00:28]} 30. Rfb1 {[%clk 0:01:05]}  Rc8 {[%clk 0:00:25]} 31. Rb3 {[%clk 0:00:53]}  Nd2 {[%clk 0:00:25]} 32. Rb5 {[%clk 0:00:50]}  Nc4 {[%clk 0:00:25]} 33. axb6 {[%clk 0:00:50]}  axb6 {[%clk 0:00:25]} 34. Kf2 {[%clk 0:00:47]}  Ra8 {[%clk 0:00:24]} 35. Rxa8 {[%clk 0:00:37]}  Kxa8 {[%clk 0:00:25]} 36. g4 {[%clk 0:00:37]}  Kb7 {[%clk 0:00:21]} 37. h4 {[%clk 0:00:32]}  Kc6 {[%clk 0:00:19]} 38. Rb1 {[%clk 0:00:32]}  Rd7 {[%clk 0:00:20]} 39. Kg3 {[%clk 0:00:28]}  Re7 {[%clk 0:00:18]} 40. g5 {[%clk 0:00:28]}  b5 {[%clk 0:00:13]} 41. gxf6 {[%clk 0:00:23]}  gxf6 {[%clk 0:00:14]} 42. Kg4 {[%clk 0:00:24]}  Re4+ {[%clk 0:00:11]} 43. Kh5 {[%clk 0:00:24]}  Nd6 {[%clk 0:00:12]} 44. Ra1 {[%clk 0:00:19]}  Nxf5 {[%clk 0:00:09]} 45. Bxf6 {[%clk 0:00:19]}  b4 {[%clk 0:00:06]} 46. cxb4 {[%clk 0:00:18]}  Rxb4 {[%clk 0:00:06]} 47. Ra7 {[%clk 0:00:16]}  Ng3+ {[%clk 0:00:05]} 48. Kh6 {[%clk 0:00:15]}  Rf4 {[%clk 0:00:04]} 49. Bg5 {[%clk 0:00:12]}  Re4 {[%clk 0:00:04]} 50. Kxh7 {[%clk 0:00:05]}  d4 {[%clk 0:00:04]} 51. Ra6+ {[%clk 0:00:02]}  Kd5 {[%clk 0:00:04]} 52. Ra8 {[%clk 0:00:01]}  d3 {[%clk 0:00:04]} 53. Rd8+ {[%clk 0:00:01]}  Kc4 {[%clk 0:00:04]} 54. Kg6 {[%clk 0:00:01]}  Rd4 {[%clk 0:00:04]} 0-1


[Site "https://www.chess.com"]

[Event "Titled Tuesday Blitz February 01 A 2022"]
[White "Wong, Yinn Long"]
[Black "Martinez Alcantara, Jose Eduardo"]
[WhiteFideId "5707684"]
[BlackFideId "3805662"]
[WhiteElo "2862"]
[BlackElo "2994"]
[Result "0-1"]
[Round "06"]
[TimeControl "180+1"]
[Date "2022.02.01"]
[WhiteClock "0:00:08"]
[BlackClock "0:00:27"]

1. d4 {[%clk 0:03:00]}  Nf6 {[%clk 0:03:00]} 2. Bf4 {[%clk 0:03:00]}  d5 {[%clk 0:02:58]} 3. e3 {[%clk 0:03:00]}  e6 {[%clk 0:02:59]} 4. Nd2 {[%clk 0:03:00]}  c5 {[%clk 0:02:59]} 5. c3 {[%clk 0:03:00]}  Bd6 {[%clk 0:03:00]} 6. Bg3 {[%clk 0:02:54]}  Qc7 {[%clk 0:02:54]} 7. dxc5 {[%clk 0:02:54]}  Qxc5 {[%clk 0:02:53]} 8. Ngf3 {[%clk 0:02:53]}  Nbd7 {[%clk 0:02:46]} 9. Bd3 {[%clk 0:02:48]}  O-O {[%clk 0:02:45]} 10. Qe2 {[%clk 0:02:39]}  h6 {[%clk 0:02:37]} 11. e4 {[%clk 0:02:38]}  dxe4 {[%clk 0:02:36]} 12. Bxe4 {[%clk 0:02:36]}  Rb8 {[%clk 0:02:28]} 13. O-O {[%clk 0:01:59]}  Bxg3 {[%clk 0:02:26]} 14. hxg3 {[%clk 0:01:59]}  b5 {[%clk 0:02:23]} 15. Rad1 {[%clk 0:01:53]}  b4 {[%clk 0:02:12]} 16. Nb3 {[%clk 0:01:50]}  Qc7 {[%clk 0:02:12]} 17. Rc1 {[%clk 0:01:30]}  Nxe4 {[%clk 0:01:54]} 18. Qxe4 {[%clk 0:01:31]}  Bb7 {[%clk 0:01:54]} 19. Qe3 {[%clk 0:01:30]}  bxc3 {[%clk 0:01:51]} 20. Rxc3 {[%clk 0:01:30]}  Qb6 {[%clk 0:01:52]} 21. Qf4 {[%clk 0:01:14]}  Rbc8 {[%clk 0:01:47]} 22. Rfc1 {[%clk 0:01:03]}  Rxc3 {[%clk 0:01:45]} 23. Rxc3 {[%clk 0:01:04]}  Bd5 {[%clk 0:01:34]} 24. Qd4 {[%clk 0:00:53]}  Rb8 {[%clk 0:01:31]} 25. Qxb6 {[%clk 0:00:49]}  axb6 {[%clk 0:01:32]} 26. a3 {[%clk 0:00:38]}  Kf8 {[%clk 0:01:30]} 27. Rc7 {[%clk 0:00:35]}  Ke8 {[%clk 0:01:28]} 28. Nbd4 {[%clk 0:00:35]}  Kd8 {[%clk 0:01:18]} 29. Nb5 {[%clk 0:00:31]}  e5 {[%clk 0:00:52]} 30. Nd2 {[%clk 0:00:23]}  Rc8 {[%clk 0:00:46]} 31. Rxc8+ {[%clk 0:00:20]}  Kxc8 {[%clk 0:00:47]} 32. f3 {[%clk 0:00:20]}  Nc5 {[%clk 0:00:42]} 33. Nc4 {[%clk 0:00:15]}  Bxc4 {[%clk 0:00:38]} 34. Nd6+ {[%clk 0:00:15]}  Kc7 {[%clk 0:00:39]} 35. Nxc4 {[%clk 0:00:16]}  Nd3 {[%clk 0:00:36]} 36. b3 {[%clk 0:00:12]}  f6 {[%clk 0:00:34]} 37. Kf1 {[%clk 0:00:12]}  Kc6 {[%clk 0:00:35]} 38. Ke2 {[%clk 0:00:11]}  Nc1+ {[%clk 0:00:35]} 39. Kd2 {[%clk 0:00:10]}  Nxb3+ {[%clk 0:00:36]} 40. Kc3 {[%clk 0:00:11]}  Nd4 {[%clk 0:00:34]} 41. Ne3 {[%clk 0:00:11]}  Ne2+ {[%clk 0:00:33]} 42. Kb4 {[%clk 0:00:11]}  Nxg3 {[%clk 0:00:34]} 43. a4 {[%clk 0:00:10]}  h5 {[%clk 0:00:34]} 44. Nc4 {[%clk 0:00:08]}  Nf5 {[%clk 0:00:33]} 45. Kc3 {[%clk 0:00:07]}  Nh4 {[%clk 0:00:31]} 46. Ne3 {[%clk 0:00:08]}  g6 {[%clk 0:00:31]} 47. Kd3 {[%clk 0:00:07]}  Nf5 {[%clk 0:00:30]} 48. Nc2 {[%clk 0:00:05]}  Ne7 {[%clk 0:00:29]} 49. Nb4+ {[%clk 0:00:06]}  Kc5 {[%clk 0:00:30]} 50. Na6+ {[%clk 0:00:06]}  Kd6 {[%clk 0:00:30]} 51. Kc4 {[%clk 0:00:07]}  Nd5 {[%clk 0:00:29]} 52. Nb8 {[%clk 0:00:04]}  f5 {[%clk 0:00:30]} 53. Kb5 {[%clk 0:00:04]}  g5 {[%clk 0:00:28]} 54. Nc6 {[%clk 0:00:03]}  g4 {[%clk 0:00:28]} 55. Nd8 {[%clk 0:00:03]}  gxf3 {[%clk 0:00:26]} 56. gxf3 {[%clk 0:00:03]}  Ke7 {[%clk 0:00:26]} 57. Nc6+ {[%clk 0:00:04]}  Ke6 {[%clk 0:00:26]} 58. Nd8+ {[%clk 0:00:04]}  Kf6 {[%clk 0:00:26]} 59. Kc6 {[%clk 0:00:05]}  h4 {[%clk 0:00:24]} 60. Kxd5 {[%clk 0:00:03]}  h3 {[%clk 0:00:25]} 61. Kc6 {[%clk 0:00:03]}  h2 {[%clk 0:00:25]} 62. Kxb6 {[%clk 0:00:04]}  h1=Q {[%clk 0:00:26]} 63. a5 {[%clk 0:00:05]}  Qxf3 {[%clk 0:00:25]} 64. a6 {[%clk 0:00:05]}  Qe3+ {[%clk 0:00:26]} 65. Kb7 {[%clk 0:00:05]}  Qb3+ {[%clk 0:00:26]} 66. Kc7 {[%clk 0:00:05]}  Qc4+ {[%clk 0:00:25]} 67. Kb7 {[%clk 0:00:06]}  Qb5+ {[%clk 0:00:25]} 68. Ka7 {[%clk 0:00:07]}  e4 {[%clk 0:00:23]} 69. Nb7 {[%clk 0:00:07]}  e3 {[%clk 0:00:23]} 70. Nd6 {[%clk 0:00:07]}  Qc5+ {[%clk 0:00:24]} 71. Ka8 {[%clk 0:00:07]}  Qxd6 {[%clk 0:00:24]} 72. a7 {[%clk 0:00:08]}  Qc6+ {[%clk 0:00:25]} 73. Kb8 {[%clk 0:00:08]}  Qb6+ {[%clk 0:00:26]} 74. Ka8 {[%clk 0:00:07]}  Qxa7+ {[%clk 0:00:26]} 75. Kxa7 {[%clk 0:00:08]}  e2 {[%clk 0:00:27]} 0-1


[Site "https://www.chess.com"]

[Event "Titled Tuesday Blitz February 01 A 2022"]
[White "Xiong, Jeffery"]
[Black "Kushagra, Mohan"]
[WhiteFideId "2047640"]
[BlackFideId "25033638"]
[WhiteElo "2727"]
[BlackElo "1886"]
[Result "1-0"]
[Round "06"]
[TimeControl "180+1"]
[Date "2022.02.01"]
[WhiteClock "0:00:54"]
[BlackClock "0:00:39"]

1. Nf3 {[%clk 0:03:00]}  Nf6 {[%clk 0:02:44]} 2. g3 {[%clk 0:03:00]}  g6 {[%clk 0:02:42]} 3. Bg2 {[%clk 0:03:01]}  Bg7 {[%clk 0:02:41]} 4. O-O {[%clk 0:03:02]}  O-O {[%clk 0:02:40]} 5. d4 {[%clk 0:03:02]}  c5 {[%clk 0:02:40]} 6. d5 {[%clk 0:02:59]}  d6 {[%clk 0:02:40]} 7. Nc3 {[%clk 0:02:57]}  e6 {[%clk 0:02:40]} 8. e4 {[%clk 0:02:56]}  exd5 {[%clk 0:02:40]} 9. exd5 {[%clk 0:02:56]}  a6 {[%clk 0:02:39]} 10. a4 {[%clk 0:02:56]}  Re8 {[%clk 0:02:39]} 11. h3 {[%clk 0:02:49]}  h6 {[%clk 0:02:32]} 12. Nd2 {[%clk 0:02:47]}  Nbd7 {[%clk 0:02:28]} 13. Nc4 {[%clk 0:02:48]}  Ne5 {[%clk 0:02:27]} 14. Ne3 {[%clk 0:02:48]}  Rb8 {[%clk 0:02:17]} 15. a5 {[%clk 0:02:44]}  b5 {[%clk 0:02:04]} 16. axb6 {[%clk 0:02:45]}  Rxb6 {[%clk 0:02:04]} 17. f4 {[%clk 0:02:43]}  Ned7 {[%clk 0:02:04]} 18. Nc4 {[%clk 0:02:44]}  Rb4 {[%clk 0:02:00]} 19. Nxd6 {[%clk 0:02:44]}  Nh5 {[%clk 0:01:58]} 20. Nxe8 {[%clk 0:02:40]}  Qxe8 {[%clk 0:01:58]} 21. Kh2 {[%clk 0:02:38]}  Qd8 {[%clk 0:01:55]} 22. Qf3 {[%clk 0:02:27]}  f5 {[%clk 0:01:52]} 23. d6 {[%clk 0:02:22]}  Bb7 {[%clk 0:01:52]} 24. Nd5 {[%clk 0:02:22]}  Ndf6 {[%clk 0:01:33]} 25. Nxf6+ {[%clk 0:01:41]}  Bxf6 {[%clk 0:01:33]} 26. Qd3 {[%clk 0:01:37]}  Bxg2 {[%clk 0:01:25]} 27. Kxg2 {[%clk 0:01:38]}  Rd4 {[%clk 0:01:25]} 28. Qb3+ {[%clk 0:01:34]}  c4 {[%clk 0:01:25]} 29. Qf3 {[%clk 0:01:35]}  Qxd6 {[%clk 0:01:20]} 30. Be3 {[%clk 0:01:32]}  Re4 {[%clk 0:01:19]} 31. g4 {[%clk 0:01:20]}  Qe6 {[%clk 0:01:11]} 32. gxh5 {[%clk 0:01:13]}  Rxe3 {[%clk 0:01:11]} 33. Qa8+ {[%clk 0:01:14]}  Kg7 {[%clk 0:01:10]} 34. Rxa6 {[%clk 0:01:13]}  Re2+ {[%clk 0:01:00]} 35. Kh1 {[%clk 0:01:12]}  Qe3 {[%clk 0:01:00]} 36. Qb7+ {[%clk 0:00:55]}  Be7 {[%clk 0:00:53]} 37. Rxg6+ {[%clk 0:00:54]}  Kh7 {[%clk 0:00:49]} 38. Qf3 {[%clk 0:00:55]}  Qd2 {[%clk 0:00:39]} 39. Rg2 {[%clk 0:00:54]} 1-0


[Site "https://www.chess.com"]

[Event "Titled Tuesday Blitz February 01 A 2022"]
[White "Abdyzhapar, Asylbek"]
[Black "Neiksans, Arturs"]
[WhiteFideId "13800337"]
[BlackFideId "11601388"]
[WhiteElo "2331"]
[BlackElo "2447"]
[Result "0-1"]
[Round "07"]
[TimeControl "180+1"]
[Date "2022.02.01"]
[WhiteClock "0:00:18"]
[BlackClock "0:00:29"]

1. d4 {[%clk 0:03:00]}  Nf6 {[%clk 0:02:55]} 2. c4 {[%clk 0:03:00]}  e5 {[%clk 0:02:53]} 3. dxe5 {[%clk 0:02:57]}  Ng4 {[%clk 0:02:50]} 4. Bf4 {[%clk 0:02:57]}  Nc6 {[%clk 0:02:46]} 5. Nf3 {[%clk 0:02:57]}  Bb4+ {[%clk 0:02:45]} 6. Nbd2 {[%clk 0:02:56]}  Qe7 {[%clk 0:02:46]} 7. a3 {[%clk 0:02:56]}  Bxd2+ {[%clk 0:02:44]} 8. Qxd2 {[%clk 0:02:56]}  Ngxe5 {[%clk 0:02:43]} 9. Nxe5 {[%clk 0:02:53]}  Nxe5 {[%clk 0:02:43]} 10. e3 {[%clk 0:02:54]}  O-O {[%clk 0:02:40]} 11. Qc3 {[%clk 0:02:54]}  d6 {[%clk 0:02:31]} 12. c5 {[%clk 0:02:53]}  Bg4 {[%clk 0:02:22]} 13. Bb5 {[%clk 0:02:34]}  a6 {[%clk 0:02:19]} 14. Ba4 {[%clk 0:02:33]}  Ng6 {[%clk 0:02:10]} 15. cxd6 {[%clk 0:02:33]}  cxd6 {[%clk 0:02:10]} 16. Bg3 {[%clk 0:02:32]}  Qe4 {[%clk 0:02:05]} 17. f3 {[%clk 0:01:32]}  Qxa4 {[%clk 0:02:00]} 18. fxg4 {[%clk 0:01:32]}  Qxg4 {[%clk 0:01:46]} 19. O-O {[%clk 0:01:32]}  Qe6 {[%clk 0:01:41]} 20. Rad1 {[%clk 0:01:30]}  d5 {[%clk 0:01:39]} 21. Rd4 {[%clk 0:01:20]}  Rfe8 {[%clk 0:01:32]} 22. Re1 {[%clk 0:01:19]}  Rac8 {[%clk 0:01:19]} 23. Qb3 {[%clk 0:01:18]}  Ne7 {[%clk 0:01:16]} 24. e4 {[%clk 0:01:09]}  Nc6 {[%clk 0:00:52]} 25. Rxd5 {[%clk 0:01:07]}  Ne7 {[%clk 0:00:52]} 26. Rd3 {[%clk 0:01:04]}  Qxb3 {[%clk 0:00:52]} 27. Rxb3 {[%clk 0:01:04]}  b5 {[%clk 0:00:52]} 28. Rd3 {[%clk 0:01:01]}  Rc6 {[%clk 0:00:47]} 29. h3 {[%clk 0:00:58]}  f6 {[%clk 0:00:46]} 30. Rd7 {[%clk 0:00:55]}  Ng6 {[%clk 0:00:44]} 31. Ra7 {[%clk 0:00:49]}  h5 {[%clk 0:00:40]} 32. Rd1 {[%clk 0:00:44]}  Re7 {[%clk 0:00:38]} 33. Rxe7 {[%clk 0:00:36]}  Nxe7 {[%clk 0:00:38]} 34. e5 {[%clk 0:00:35]}  Nf5 {[%clk 0:00:38]} 35. Bf4 {[%clk 0:00:35]}  g5 {[%clk 0:00:35]} 36. Bh2 {[%clk 0:00:34]}  g4 {[%clk 0:00:34]} 37. hxg4 {[%clk 0:00:32]}  hxg4 {[%clk 0:00:35]} 38. Rf1 {[%clk 0:00:25]}  g3 {[%clk 0:00:30]} 39. Rxf5 {[%clk 0:00:24]}  Rc1+ {[%clk 0:00:29]} 40. Rf1 {[%clk 0:00:18]}  Rxf1+ {[%clk 0:00:29]} 41. Kxf1 {[%clk 0:00:18]}  gxh2 {[%clk 0:00:29]} 0-1


[Site "https://www.chess.com"]

[Event "Titled Tuesday Blitz February 01 A 2022"]
[White "Aravindh, Chithambaram VR."]
[Black "Garcia Martin, Marta"]
[WhiteFideId "5072786"]
[BlackFideId "32084030"]
[WhiteElo "2561"]
[BlackElo "2102"]
[Result "1-0"]
[Round "07"]
[TimeControl "180+1"]
[Date "2022.02.01"]
[WhiteClock "0:00:36"]
[BlackClock "0:00:11"]

1. b3 {[%clk 0:03:00]}  b6 {[%clk 0:02:51]} 2. Bb2 {[%clk 0:03:01]}  Bb7 {[%clk 0:02:51]} 3. Nf3 {[%clk 0:03:00]}  Nf6 {[%clk 0:02:52]} 4. g3 {[%clk 0:03:00]}  g6 {[%clk 0:02:51]} 5. Bg2 {[%clk 0:03:00]}  Bg7 {[%clk 0:02:51]} 6. O-O {[%clk 0:03:00]}  O-O {[%clk 0:02:52]} 7. c4 {[%clk 0:03:00]}  e6 {[%clk 0:02:49]} 8. Nc3 {[%clk 0:02:59]}  d5 {[%clk 0:02:45]} 9. cxd5 {[%clk 0:02:56]}  exd5 {[%clk 0:02:40]} 10. e3 {[%clk 0:02:56]}  c5 {[%clk 0:02:39]} 11. d4 {[%clk 0:02:56]}  Nbd7 {[%clk 0:02:37]} 12. Rc1 {[%clk 0:02:55]}  a6 {[%clk 0:02:30]} 13. Ne5 {[%clk 0:02:19]}  Nxe5 {[%clk 0:02:12]} 14. dxe5 {[%clk 0:02:20]}  Ne4 {[%clk 0:02:13]} 15. f4 {[%clk 0:02:10]}  Nxc3 {[%clk 0:02:10]} 16. Rxc3 {[%clk 0:02:09]}  Qd7 {[%clk 0:01:30]} 17. Rd3 {[%clk 0:02:07]}  Rad8 {[%clk 0:01:30]} 18. Qe2 {[%clk 0:01:46]}  Qe6 {[%clk 0:00:54]} 19. Rfd1 {[%clk 0:01:38]}  Rfe8 {[%clk 0:00:45]} 20. Qd2 {[%clk 0:01:18]}  f6 {[%clk 0:00:19]} 21. Rxd5 {[%clk 0:01:16]}  Bxd5 {[%clk 0:00:14]} 22. Bxd5 {[%clk 0:01:17]}  Rxd5 {[%clk 0:00:14]} 23. Qxd5 {[%clk 0:01:18]}  fxe5 {[%clk 0:00:14]} 24. fxe5 {[%clk 0:00:42]}  Qxd5 {[%clk 0:00:10]} 25. Rxd5 {[%clk 0:00:43]}  Kf7 {[%clk 0:00:10]} 26. Rd7+ {[%clk 0:00:36]}  Re7 {[%clk 0:00:11]} 27. e6+ {[%clk 0:00:36]} 1-0


[Site "https://www.chess.com"]

[Event "Titled Tuesday Blitz February 01 A 2022"]
[White "Bluebaum, Matthias"]
[Black "Jones, Gawain C B"]
[WhiteFideId "24651516"]
[BlackFideId "409561"]
[WhiteElo "2550"]
[BlackElo "2657"]
[Result "1-0"]
[Round "07"]
[TimeControl "180+1"]
[Date "2022.02.01"]
[WhiteClock "0:01:16"]
[BlackClock "0:00:12"]

1. d4 {[%clk 0:03:00]}  d6 {[%clk 0:02:58]} 2. Nf3 {[%clk 0:03:01]}  g6 {[%clk 0:02:58]} 3. c4 {[%clk 0:03:01]}  Bg7 {[%clk 0:02:59]} 4. Nc3 {[%clk 0:03:02]}  Nd7 {[%clk 0:02:58]} 5. e4 {[%clk 0:03:02]}  e5 {[%clk 0:02:58]} 6. Be2 {[%clk 0:03:03]}  Ngf6 {[%clk 0:02:59]} 7. Be3 {[%clk 0:03:03]}  O-O {[%clk 0:02:58]} 8. O-O {[%clk 0:03:03]}  Qe7 {[%clk 0:02:58]} 9. Qc2 {[%clk 0:03:02]}  c6 {[%clk 0:02:57]} 10. Rad1 {[%clk 0:03:02]}  h6 {[%clk 0:02:57]} 11. h3 {[%clk 0:02:55]}  exd4 {[%clk 0:02:56]} 12. Nxd4 {[%clk 0:02:56]}  Nc5 {[%clk 0:02:54]} 13. f3 {[%clk 0:02:55]}  Nh5 {[%clk 0:02:53]} 14. Rfe1 {[%clk 0:02:53]}  f5 {[%clk 0:02:37]} 15. b4 {[%clk 0:02:44]}  f4 {[%clk 0:02:34]} 16. Bf2 {[%clk 0:02:40]}  Ne6 {[%clk 0:02:33]} 17. Nxe6 {[%clk 0:02:31]}  Bxe6 {[%clk 0:02:33]} 18. c5 {[%clk 0:02:31]}  Qg5 {[%clk 0:02:20]} 19. h4 {[%clk 0:02:28]}  Qf6 {[%clk 0:02:18]} 20. Na4 {[%clk 0:02:21]}  d5 {[%clk 0:02:14]} 21. exd5 {[%clk 0:02:20]}  Bxd5 {[%clk 0:02:06]} 22. Bc4 {[%clk 0:02:20]}  Ng3 {[%clk 0:01:51]} 23. Bxg3 {[%clk 0:02:03]}  fxg3 {[%clk 0:01:50]} 24. Qe4 {[%clk 0:02:03]}  Kh7 {[%clk 0:01:09]} 25. Bxd5 {[%clk 0:02:02]}  cxd5 {[%clk 0:01:09]} 26. Qg4 {[%clk 0:02:03]}  b5 {[%clk 0:01:01]} 27. cxb6 {[%clk 0:01:38]}  axb6 {[%clk 0:01:01]} 28. Re6 {[%clk 0:01:39]}  Qf7 {[%clk 0:00:55]} 29. Nxb6 {[%clk 0:01:35]}  Rxa2 {[%clk 0:00:53]} 30. Nxd5 {[%clk 0:01:28]}  Rd8 {[%clk 0:00:49]} 31. Qe4 {[%clk 0:01:17]}  Qa7+ {[%clk 0:00:41]} 32. Kh1 {[%clk 0:01:16]}  Rxd5 {[%clk 0:00:12]} 33. Qxg6+ {[%clk 0:01:16]} 1-0


[Site "https://www.chess.com"]